[Event "3. Open Bohumin 2020"]
[Site "Bohumin"]
[Date "2020.07.21"]
[Round "4.16"]
[White "Lys, Josef"]
[Black "Radecki, Adam"]
[Result "0-1"]
[ECO "D11"]
[WhiteElo "2121"]
[BlackElo "1895"]
[Annotator "ChessBase"]
[PlyCount "102"]
[EventDate "2020.07.18"]
[EventType "swiss"]
[EventCountry "CZE"]
[SourceTitle "playchess.com"]
[Source "ChessBase"]
[SourceQuality "1"]
[TimeControl "40/5400+30:900+30"]

1. d4 {[%emt 0:00:00]} Nf6 {[%emt 0:00:17]} 2. Nf3 {[%emt 0:00:00]} d5 {[%emt 0:00:15]} 3. c4 {[%emt 0:00:04]} c6 {[%emt 0:00:15]} 4. e3 {[%emt 0:00:09]} g6 {[%emt 0:00:27]} 5. Nc3 {[%emt 0:00:07]} Bg7 {[%emt 0:00:33]} 6. b3 {[%emt 0:00:22]} O-O {[%emt 0:00:14]} 7. Bb2 {[%emt 0:01:22]} Nbd7 {[%emt 0:02:15]} 8. Be2 {[%emt 0:00:09]} Re8 {[%emt 0:00:17]} 9. O-O {[%emt 0:00:13]} Ne4 {[%emt 0:01:59]} 10. cxd5 {[%emt 0:04:32]} Nxc3 {[%emt 0:00:08]} 11. Bxc3 {[%emt 0:00:09]} cxd5 {[%emt 0:00:04]} 12. Rc1 {[%emt 0:00:28]} Nf6 {[%emt 0:00:19]} 13. Ne5 {[%emt 0:01:30]} Bd7 {[%emt 0:03:47]} 14. Bb4 {[%emt 0:03:10]} a5 {[%emt 0:01:57]} 15. Bc5 {[%emt 0:02:19]} Ne4 {[%emt 0:03:20]} 16. Nxd7 {[%emt 0:02:35]} Qxd7 {[%emt 0:00:15]} 17. Bb6 {[%emt 0:00:33]} Rec8 {[%emt 0:00:51]} 18. Qd3 {[%emt 0:14:14]} Nd6 {[%emt 0:03:09]} 19. Rxc8+ {[%emt 0:09:28]} Qxc8 {[%emt 0:00:18]} 20. a4 {[%emt 0:02:30]} Ra6 {[%emt 0:05:10]} 21. Bc5 {[%emt 0:05:01]} Rc6 {[%emt 0:00:28]} 22. Qd1 {[%emt 0:03:39]} b6 {[%emt 0:04:25]} 23. Ba3 {[%emt 0:04:13]} Qc7 {[%emt 0:02:33]} 24. Bd3 {[%emt 0:01:09]} e6 {[%emt 0:01:06]} 25. Bb2 {[%emt 0:00:30]} Qb8 {[%emt 0:05:09]} 26. Qe2 {[%emt 0:00:58]} Qc7 {[%emt 0:02:07]} 27. g4 {[%emt 0:01:21]} Ne4 {[%emt 0:02:02]} 28. f3 {[%emt 0:00:46]} Nc3 {[%emt 0:02:56]} 29. Qd2 {[%emt 0:05:30]} e5 {[%emt 0:00:40]} 30. Bxc3 {[%emt 0:10:11]} Rxc3 {[%emt 0:00:14]} 31. Bc4 {[%emt 0:00:42]} exd4 {[%emt 0:00:34]} 32. exd4 {[%emt 0:00:09]} Rxc4 {[%emt 0:00:29]} 33. bxc4 {[%emt 0:00:07]} Qxc4 {[%emt 0:00:04]} 34. Qd1 {[%emt 0:05:22]} Bxd4+ {[%emt 0:01:55]} 35. Kg2 {[%emt 0:00:16]} Be5 {[%emt 0:03:14]} 36. Rf2 {[%emt 0:01:22]} d4 {[%emt 0:00:57]} 37. Qe2 {[%emt 0:04:56]} Qxe2 {[%emt 0:00:34]} 38. Rxe2 {[%emt 0:00:28]} Bd6 {[%emt 0:00:01]} 39. Rd2 {[%emt 0:01:39]} Bc5 {[%emt 0:00:02]} 40. f4 {[%emt 0:03:28]} f5 {[%emt 0:01:56]} 41. g5 {[%emt 0:15:36]} Kf7 {[%emt 0:15:40]} 42. Rd3 {[%emt 0:01:55]} Ke6 {[%emt 0:00:22]} 43. Rh3 {[%emt 0:00:16]} Kd5 {[%emt 0:00:18]} 44. Kf3 {[%emt 0:01:15]} d3 {[%emt 0:00:24]} 45. Rxh7 {[%emt 0:00:22]} Kc4 {[%emt 0:04:51]} 46. Rd7 {[%emt 0:01:17]} b5 {[%emt 0:00:36]} 47. axb5 {[%emt 0:01:29]} a4 {[%emt 0:00:06]} 48. Rd8 {[%emt 0:02:48]} a3 {[%emt 0:00:21]} 49. h4 {[%emt 0:00:29]} a2 {[%emt 0:03:22]} 50. Ra8 {[%emt 0:00:11]} Kb3 {[%emt 0:00:05]} 51. h5 {[%emt 0:00:33]} Ba3 {[%emt 0:00:13]} 0-1

[Event "3. Open Bohumin 2020"]
[Site "Bohumin"]
[Date "2020.07.21"]
[Round "4.18"]
[White "Czerw, Dawid"]
[Black "Adamczyk, Piotr"]
[Result "1-0"]
[ECO "A52"]
[WhiteElo "2287"]
[BlackElo "1825"]
[Annotator "ChessBase"]
[PlyCount "85"]
[EventDate "2020.07.18"]
[EventType "swiss"]
[EventCountry "CZE"]
[SourceTitle "playchess.com"]
[Source "ChessBase"]
[SourceQuality "1"]
[TimeControl "40/5400+30:900+30"]

1. d4 {[%emt 0:00:00]} Nf6 {[%emt 0:00:00]} 2. c4 {[%emt 0:00:00]} e5 {[%emt 0:00:49]} 3. dxe5 {[%emt 0:00:00]} Ng4 {[%emt 0:00:15]} 4. Bf4 {[%emt 0:01:16]} Nc6 {[%emt 0:00:42]} 5. Nf3 {[%emt 0:00:30]} Bb4+ {[%emt 0:03:53]} 6. Nbd2 {[%emt 0:00:19]} Qe7 {[%emt 0:01:27]} 7. e3 {[%emt 0:00:15]} Ngxe5 {[%emt 0:00:52]} 8. Nxe5 {[%emt 0:01:10]} Nxe5 {[%emt 0:00:16]} 9. Be2 {[%emt 0:00:07]} d6 {[%emt 0:04:34]} 10. O-O {[%emt 0:00:32]} O-O {[%emt 0:01:13]} 11. Nb3 {[%emt 0:03:35]} Bf5 {[%emt 0:05:45]} 12. a3 {[%emt 0:08:30]} Bc5 {[%emt 0:01:25]} 13. Nxc5 {[%emt 0:00:30]} dxc5 {[%emt 0:00:03]} 14. Qb3 {[%emt 0:18:53]} Be4 {[%emt 0:05:03]} 15. Qc3 {[%emt 0:01:54]} Ng6 {[%emt 0:01:27]} 16. Bg3 {[%emt 0:00:25]} f5 {[%emt 0:11:45]} 17. Rae1 {[%emt 0:02:24]} Qg5 {[%emt 0:06:10]} 18. f3 {[%emt 0:01:52]} Bc6 {[%emt 0:00:51]} 19. Bxc7 {[%emt 0:01:48]} Rae8 {[%emt 0:01:29]} 20. Bd1 {[%emt 0:01:37]} Rf7 {[%emt 0:07:01]} 21. Bd6 {[%emt 0:12:13]} b6 {[%emt 0:01:16]} 22. Bc2 {[%emt 0:02:34]} h5 {[%emt 0:02:33]} 23. Rf2 {[%emt 0:11:58]} Nh4 {[%emt 0:07:00]} 24. Bd1 {[%emt 0:01:34]} Re6 {[%emt 0:02:02]} 25. Bf4 {[%emt 0:02:20]} Qe7 {[%emt 0:00:44]} 26. Bg3 {[%emt 0:02:35]} Ng6 {[%emt 0:01:25]} 27. Rff1 {[%emt 0:01:16]} h4 {[%emt 0:00:44]} 28. Bf4 {[%emt 0:00:18]} Nf8 {[%emt 0:02:52]} 29. h3 {[%emt 0:02:22]} g5 {[%emt 0:00:54]} 30. Bh2 {[%emt 0:00:07]} Ng6 {[%emt 0:05:47]} 31. b4 {[%emt 0:00:57]} Ne5 {[%emt 0:03:41]} 32. Bc2 {[%emt 0:02:05]} Qf6 {[%emt 0:05:22]} 33. Kh1 {[%emt 0:03:27]} Ng6 {[%emt 0:04:06]} 34. Qxf6 {[%emt 0:00:25]} Rfxf6 {[%emt 0:00:33]} 35. bxc5 {[%emt 0:01:00]} bxc5 {[%emt 0:00:19]} 36. Bg1 {[%emt 0:01:55]} Ne5 {[%emt 0:00:49]} 37. f4 {[%emt 0:02:02]} Nf7 {[%emt 0:05:24]} 38. fxg5 {[%emt 0:01:07]} Nxg5 {[%emt 0:00:28]} 39. Bxf5 {[%emt 0:02:01]} Re5 {[%emt 0:01:00]} 40. Bg4 {[%emt 0:02:03]} Rd6 {[%emt 0:01:44]} 41. Bh2 {[%emt 0:16:40]} Rd2 {[%emt 0:15:19]} 42. Bxe5 {[%emt 0:00:14]} Rxg2 {[%emt 0:00:23]} 43. e4 {[%emt 0:00:16]} 1-0

[Event "3. Open Bohumin 2020"]
[Site "Bohumin"]
[Date "2020.07.21"]
[Round "4.19"]
[White "Kula, Dominik"]
[Black "Polak, Radim"]
[Result "1-0"]
[ECO "D02"]
[WhiteElo "2250"]
[BlackElo "1796"]
[Annotator "ChessBase"]
[PlyCount "101"]
[EventDate "2020.07.18"]
[EventType "swiss"]
[EventCountry "CZE"]
[SourceTitle "playchess.com"]
[Source "ChessBase"]
[SourceQuality "1"]
[TimeControl "40/5400+30:900+30"]

1. d4 {[%emt 0:00:00]} d5 {[%emt 0:00:00]} 2. Nf3 {[%emt 0:00:00]} Nf6 {[%emt 0:00:00]} 3. Bf4 {[%emt 0:00:00]} Bf5 {[%emt 0:00:31]} 4. e3 {[%emt 0:00:00]} e6 {[%emt 0:00:30]} 5. Nbd2 {[%emt 0:01:52]} Be7 {[%emt 0:00:29]} 6. Ne5 {[%emt 0:00:32]} Nbd7 {[%emt 0:01:18]} 7. g4 {[%emt 0:01:08]} Be4 {[%emt 0:12:00]} 8. f3 {[%emt 0:01:53]} Bg6 {[%emt 0:03:36]} 9. h4 {[%emt 0:00:49]} h6 {[%emt 0:03:43]} 10. Nxg6 {[%emt 0:00:39]} fxg6 {[%emt 0:00:16]} 11. c4 {[%emt 0:01:15]} Nxg4 {[%emt 0:05:46]} 12. fxg4 {[%emt 0:00:19]} Bxh4+ {[%emt 0:00:09]} 13. Ke2 {[%emt 0:00:15]} g5 {[%emt 0:00:25]} 14. Be5 {[%emt 0:06:08]} Nxe5 {[%emt 0:01:01]} 15. dxe5 {[%emt 0:00:03]} O-O {[%emt 0:01:41]} 16. Nf3 {[%emt 0:04:49]} Rxf3 {[%emt 0:03:22]} 17. Kxf3 {[%emt 0:00:03]} Qf8+ {[%emt 0:00:06]} 18. Ke2 {[%emt 0:00:04]} Qf2+ {[%emt 0:00:04]} 19. Kd3 {[%emt 0:00:04]} Qxb2 {[%emt 0:03:43]} 20. Qc1 {[%emt 0:05:52]} Qxe5 {[%emt 0:07:21]} 21. Bg2 {[%emt 0:01:07]} dxc4+ {[%emt 0:02:31]} 22. Kxc4 {[%emt 0:00:44]} c6 {[%emt 0:03:17]} 23. Rb1 {[%emt 0:07:01]} b5+ {[%emt 0:05:55]} 24. Kb3 {[%emt 0:00:40]} a5 {[%emt 0:06:14]} 25. Qc3 {[%emt 0:02:15]} a4+ {[%emt 0:01:09]} 26. Kb2 {[%emt 0:02:19]} a3+ {[%emt 0:07:40]} 27. Kb3 {[%emt 0:00:17]} Qg3 {[%emt 0:05:15]} 28. Qxc6 {[%emt 0:00:27]} Qxe3+ {[%emt 0:01:20]} 29. Qc3 {[%emt 0:00:07]} Qf4 {[%emt 0:00:43]} 30. Kc2 {[%emt 0:05:12]} Qf2+ {[%emt 0:02:23]} 31. Qd2 {[%emt 0:00:04]} Rc8+ {[%emt 0:01:12]} 32. Kd1 {[%emt 0:00:02]} Qb6 {[%emt 0:00:56]} 33. Rb3 {[%emt 0:01:09]} Qc5 {[%emt 0:08:35]} 34. Rf1 {[%emt 0:01:28]} Qc4 {[%emt 0:02:04]} 35. Rb4 {[%emt 0:00:19]} Qc7 {[%emt 0:01:26]} 36. Rd4 {[%emt 0:00:37]} Bg3 {[%emt 0:01:45]} 37. Rd7 {[%emt 0:02:01]} Qe5 {[%emt 0:01:39]} 38. Rd8+ {[%emt 0:00:55]} Rxd8 {[%emt 0:00:43]} 39. Qxd8+ {[%emt 0:00:05]} Kh7 {[%emt 0:00:16]} 40. Qd3+ {[%emt 0:00:14]} Kg8 {[%emt 0:00:27]} 41. Qxa3 {[%emt 0:18:19]} Qd4+ {[%emt 0:16:52]} 42. Kc2 {[%emt 0:00:36]} Bf4 {[%emt 0:01:41]} 43. Qc3 {[%emt 0:01:40]} Qa4+ {[%emt 0:01:50]} 44. Qb3 {[%emt 0:00:17]} Qa6 {[%emt 0:01:37]} 45. Re1 {[%emt 0:00:28]} Qc8+ {[%emt 0:03:03]} 46. Kb1 {[%emt 0:00:19]} Kf7 {[%emt 0:00:00]} 47. Qxb5 {[%emt 0:00:00]} Qc3 {[%emt 0:00:00]} 48. Qb7+ {[%emt 0:00:00]} Kf8 {[%emt 0:00:00]} 49. Qa8+ {[%emt 0:00:00]} Kf7 {[%emt 0:00:00]} 50. Qe4 {[%emt 0:00:00]} e5 {[%emt 0:00:00]} 51. Rd1 {[%emt 0:00:00]} 1-0

[Event "3. Open Bohumin 2020"]
[Site "Bohumin"]
[Date "2020.07.22"]
[Round "5.5"]
[White "Michenka, Jozef"]
[Black "Pilch, Roman"]
[Result "1-0"]
[ECO "A59"]
[WhiteElo "2299"]
[BlackElo "2164"]
[Annotator "ChessBase"]
[PlyCount "46"]
[EventDate "2020.07.18"]
[EventType "swiss"]
[EventCountry "CZE"]
[SourceTitle "playchess.com"]
[Source "ChessBase"]
[SourceQuality "1"]
[TimeControl "40/5400+30:900+30"]

1. d4 {[%emt 0:00:02]} Nf6 {[%emt 0:00:20]} 2. c4 {[%emt 0:00:19]} c5 {[%emt 0:00:21]} 3. d5 {[%emt 0:00:22]} b5 {[%emt 0:00:03]} 4. cxb5 {[%emt 0:00:13]} a6 {[%emt 0:00:04]} 5. bxa6 {[%emt 0:00:06]} Bxa6 {[%emt 0:00:09]} 6. Nc3 {[%emt 0:00:15]} g6 {[%emt 0:00:25]} 7. e4 {[%emt 0:00:14]} Bxf1 {[%emt 0:00:16]} 8. Kxf1 {[%emt 0:00:06]} d6 {[%emt 0:00:11]} 9. Nf3 {[%emt 0:00:09]} Bg7 {[%emt 0:00:42]} 10. g3 {[%emt 0:00:07]} O-O {[%emt 0:00:07]} 11. Kg2 {[%emt 0:00:08]} Nbd7 {[%emt 0:00:25]} 12. a4 {[%emt 0:00:16]} Qb6 {[%emt 0:10:53]} 13. Qe2 {[%emt 0:00:21]} Rfb8 {[%emt 0:08:43]} 14. Nb5 {[%emt 0:00:23]} Ne8 {[%emt 0:04:21]} 15. Bg5 {[%emt 0:00:24]} h6 {[%emt 0:05:19]} 16. Bxe7 {[%emt 0:02:08]} f6 {[%emt 0:00:39]} 17. Nh4 {[%emt 0:00:09]} Kh7 {[%emt 0:42:14]} 18. Nxg6 {[%emt 0:04:05]} Kxg6 {[%emt 0:03:27]} 19. Qg4+ {[%emt 0:00:09]} Kh7 {[%emt 0:00:16]} 20. Qxd7 {[%emt 0:00:42]} Rb7 {[%emt 0:02:11]} 21. Qe6 {[%emt 0:01:13]} Kh8 {[%emt 0:02:43]} 22. Bxd6 {[%emt 0:03:27]} Nxd6 {[%emt 0:06:09]} 23. Nxd6 {[%emt 0:00:18]} Rba7 {[%emt 0:00:09]} 1-0

[Event "3. Open Bohumin 2020"]
[Site "Bohumin"]
[Date "2020.07.22"]
[Round "5.6"]
[White "Dobrovolsky, Ladislav"]
[Black "Sramek, Vojtech"]
[Result "1/2-1/2"]
[ECO "A04"]
[WhiteElo "2277"]
[BlackElo "2177"]
[Annotator "RC"]
[PlyCount "118"]
[EventDate "2020.07.18"]
[EventType "swiss"]
[EventCountry "CZE"]
[SourceTitle "playchess.com"]
[Source "ChessBase"]
[SourceQuality "1"]
[TimeControl "40/5400+30:900+30"]

1. Nf3 {[%emt 0:00:00]} c5 {[%emt 0:00:00]} 2. c4 {[%emt 0:00:00]} Nc6 {[%emt 0:00:00]} 3. d4 {[%emt 0:00:02]} cxd4 {[%emt 0:00:02]} 4. Nxd4 {[%emt 0:00:03]} g6 {[%emt 0:00:08]} 5. Nc3 {[%emt 0:00:50]} Bg7 {[%emt 0:00:09]} 6. e3 {[%emt 0:00:58]} Nf6 {[%emt 0:02:46]} 7. Be2 {[%emt 0:01:40]} O-O {[%emt 0:06:05]} 8. O-O {[%emt 0:01:36]} d5 {[%emt 0:18:27]} 9. cxd5 {[%emt 0:02:09]} Nxd5 {[%emt 0:00:28]} 10. Nxd5 {[%emt 0:01:04]} Qxd5 {[%emt 0:00:06]} 11. Bf3 {[%emt 0:01:37]} Qc5 {[%emt 0:01:56]} 12. Nxc6 {[%emt 0:01:42]} bxc6 {[%emt 0:00:19]} 13. Qa4 {[%emt 0:03:00]} Rb8 {[%emt 0:07:26]} 14. Rb1 {[%emt 0:04:58]} Rb4 {[%emt 0:20:08]} 15. Qa3 {[%emt 0:00:57]} Rd8 {[%emt 0:02:16]} 16. Bxc6 {[%emt 0:10:16]} a5 {[%emt 0:03:59]} 17. Bf3 {[%emt 0:02:44]} Ba6 {[%emt 0:01:35]} 18. Re1 {[%emt 0:04:26]} Rd3 {[%emt 0:09:48]} 19. b3 {[%emt 0:00:22]} Bc3 {[%emt 0:00:36]} 20. Bb2 {[%emt 0:02:17]} Bxe1 {[%emt 0:00:19]} 21. Rxe1 {[%emt 0:00:09]} Rd2 {[%emt 0:02:29]} 22. Bd4 {[%emt 0:02:19]} Qc7 {[%emt 0:00:13]} 23. h3 {[%emt 0:04:19]} Bd3 {[%emt 0:10:32]} 24. Rc1 {[%emt 0:13:27]} Rc2 {[%emt 0:00:05]} 25. Rd1 {[%emt 0:00:34]} e5 {[%emt 0:04:06]} 26. Bxe5 {[%emt 0:10:01]} Qxe5 {[%emt 0:00:08]} 27. Rxd3 {[%emt 0:00:11]} Qa1+ {[%emt 0:00:54]} 28. Rd1 {[%emt 0:00:16]} Qxa2 {[%emt 0:00:20]} 29. Qxa2 {[%emt 0:00:11]} Rxa2 {[%emt 0:00:04]} 30. Rd8+ {[%emt 0:00:14]} Kg7 {[%emt 0:00:07]} 31. Bd5 {[%emt 0:00:34]} Ra1+ {[%emt 0:01:54]} 32. Kh2 {[%emt 0:00:16]} Rd1 {[%emt 0:03:09]} 33. Rd7 {[%emt 0:05:46]} Kh6 {[%emt 0:00:06]} 34. g4 {[%emt 0:01:08]} Rb5 {[%emt 0:02:53]} 35. e4 {[%emt 0:01:12]} f5 {[%emt 0:02:00]} 36. gxf5 {[%emt 0:11:43]} gxf5 {[%emt 0:00:04]} 37. Ra7 {[%emt 0:02:39]} Rd2 {[%emt 0:00:45]} 38. Kg2 {[%emt 0:01:51]} Rd4 {[%emt 0:01:04]} 39. Kf3 {[%emt 0:04:11]} Kg5 {[%emt 0:01:17]} 40. Rg7+ {[%emt 0:01:32]} Kh6 {[%emt 0:00:20]} 41. Ra7 {[%emt 0:15:52]} fxe4+ {[%emt 0:10:44]} 42. Bxe4 {[%emt 0:00:00]} Kg5 {[%emt 0:00:04]} 43. Rg7+ {[%emt 0:00:00]} Kf6 {[%emt 0:00:08]} 44. Rxh7 {[%emt 0:00:00]} Rxb3+ {[%emt 0:00:24]} 45. Kf4 {[%emt 0:00:00]} Rb5 {[%emt 0:01:21]} 46. Rh6+ {[%emt 0:00:00]} Kg7 {[%emt 0:00:22]} 47. Rg6+ {[%emt 0:00:00]} Kf7 {[%emt 0:00:11]} 48. Ra6 {[%emt 0:00:00]} a4 {[%emt 0:01:33]} 49. h4 {[%emt 0:00:00]} Rh5 {[%emt 0:01:50]} 50. Ke3 {[%emt 0:00:00]} Rxe4+ {[%emt 0:00:08]} 51. Kxe4 {[%emt 0:00:12]} Rxh4+ {[%emt 0:00:07]} 52. f4 {[%emt 0:00:06]} a3 {[%emt 0:00:49]} 53. Rxa3 {[%emt 0:00:35]} Rh6 {[%emt 0:00:33]} 54. Ra7+ {[%emt 0:00:17]} Kf8 {[%emt 0:00:07]} 55. Kf5 {[%emt 0:00:44]} Rb6 {[%emt 0:00:04]} 56. Kg5 {[%emt 0:00:13]} Rb5+ {[%emt 0:00:16]} 57. f5 {[%emt 0:00:40]} Rb6 {[%emt 0:00:03]} 58. Rh7 {[%emt 0:00:26]} Ra6 {[%emt 0:00:26]} 59. Rb7 {[%emt 0:00:49]} Rc6 {[%emt 0:00:11]} 1/2-1/2

[Event "3. Open Bohumin 2020"]
[Site "Bohumin"]
[Date "2020.07.22"]
[Round "5.7"]
[White "Radecki, Adam"]
[Black "Galuszka, Tomasz"]
[Result "1/2-1/2"]
[ECO "B30"]
[WhiteElo "1895"]
[BlackElo "2255"]
[Annotator "ChessBase"]
[PlyCount "41"]
[EventDate "2020.07.18"]
[EventType "swiss"]
[EventCountry "CZE"]
[SourceTitle "playchess.com"]
[Source "ChessBase"]
[SourceQuality "1"]
[TimeControl "40/5400+30:900+30"]

1. e4 {[%emt 0:00:01]} c5 {[%emt 0:00:00]} 2. Nf3 {[%emt 0:00:38]} Nc6 {[%emt 0:00:00]} 3. d3 {[%emt 0:02:14]} e6 {[%emt 0:00:05]} 4. g3 {[%emt 0:00:08]} d5 {[%emt 0:00:24]} 5. Nbd2 {[%emt 0:00:05]} Nf6 {[%emt 0:00:10]} 6. Bg2 {[%emt 0:00:07]} Be7 {[%emt 0:01:09]} 7. O-O {[%emt 0:01:23]} Qc7 {[%emt 0:00:22]} 8. c3 {[%emt 0:01:16]} b6 {[%emt 0:01:32]} 9. Qc2 {[%emt 0:00:35]} dxe4 {[%emt 0:02:49]} 10. dxe4 {[%emt 0:01:29]} Ba6 {[%emt 0:05:02]} 11. Re1 {[%emt 0:01:35]} Rd8 {[%emt 0:03:48]} 12. Bf1 {[%emt 0:00:17]} Bb7 {[%emt 0:00:27]} 13. Nc4 {[%emt 0:00:22]} e5 {[%emt 0:09:35]} 14. Bg5 {[%emt 0:01:12]} O-O {[%emt 0:03:30]} 15. Bxf6 {[%emt 0:00:41]} Bxf6 {[%emt 0:00:32]} 16. Rad1 {[%emt 0:00:07]} Ne7 {[%emt 0:04:07]} 17. Bg2 {[%emt 0:05:02]} Bc6 {[%emt 0:09:26]} 18. h4 {[%emt 0:04:19]} g6 {[%emt 0:01:02]} 19. Ne3 {[%emt 0:01:26]} Bg7 {[%emt 0:02:06]} 20. c4 {[%emt 0:02:14]} Qb7 {[%emt 0:17:57]} 21. Nd5 {[%emt 0:01:43]} 1/2-1/2

[Event "3. Open Bohumin 2020"]
[Site "Bohumin"]
[Date "2020.07.22"]
[Round "5.13"]
[White "Rodshtein, Tereza"]
[Black "Grochol, Kamil"]
[Result "*"]
[ECO "C44"]
[WhiteElo "2186"]
[BlackElo "2023"]
[Annotator "RC"]
[PlyCount "57"]
[EventDate "2020.07.18"]
[EventType "swiss"]
[EventCountry "CZE"]
[SourceTitle "playchess.com"]
[Source "ChessBase"]
[SourceQuality "1"]
[TimeControl "40/5400+30:900+30"]

1. e4 {[%emt 0:00:37]} e5 {[%emt 0:00:00]} 2. Nf3 {[%emt 0:00:46]} Nc6 {[%emt 0:00:14]} 3. Nc3 {[%emt 0:01:38]} Nf6 {[%emt 0:01:01]} 4. Bb5 {[%emt 0:00:26]} d6 {[%emt 0:06:00]} 5. d4 {[%emt 0:05:40]} exd4 {[%emt 0:02:51]} 6. Qxd4 {[%emt 0:00:22]} Bd7 7. Bxc6 {[%emt 0:00:55]} Bxc6 {[%emt 0:06:01]} 8. Bg5 {[%emt 0:00:18]} Be7 {[%emt 0:02:59]} 9. O-O-O {[%emt 0:00:14]} O-O {[%emt 0:06:18]} 10. Rhe1 {[%emt 0:11:55]} h6 {[%emt 0:05:04]} 11. Bh4 {[%emt 0:06:07]} Re8 {[%emt 0:04:43]} 12. e5 {[%emt 0:06:02]} dxe5 {[%emt 0:05:26]} 13. Qc4 {[%emt 0:00:33]} Nd7 {[%emt 0:19:04]} 14. Nxe5 {[%emt 0:16:37]} Bxh4 {[%emt 0:07:18]} 15. Qxf7+ {[%emt 0:05:27]} Kh8 {[%emt 0:02:43]} 16. Nxc6 {[%emt 0:04:46]} bxc6 {[%emt 0:04:08]} 17. Rxe8+ {[%emt 0:00:52]} Qxe8 {[%emt 0:00:05]} 18. Qxe8+ {[%emt 0:00:05]} Rxe8 {[%emt 0:00:06]} 19. Rxd7 {[%emt 0:00:07]} Bxf2 {[%emt 0:03:06]} 20. Rxc7 {[%emt 0:03:05]} Re1+ {[%emt 0:02:42]} 21. Kd2 {[%emt 0:00:07]} Rg1 {[%emt 0:01:13]} 22. Rxc6 {[%emt 0:06:17]} Rxg2 {[%emt 0:00:32]} 23. h3 {[%emt 0:02:03]} Rh2 {[%emt 0:01:54]} 24. Ne2 {[%emt 0:00:13]} Rxh3 {[%emt 0:02:42]} 25. c4 {[%emt 0:00:26]} Kg8 {[%emt 0:01:17]} 26. c5 {[%emt 0:01:48]} g5 {[%emt 0:02:54]} 27. Rc8+ {[%emt 0:00:36]} Kf7 {[%emt 0:00:29]} 28. c6 {[%emt 0:00:41]} Ke7 {[%emt 0:00:28]} 29. b4 {[%emt 0:04:55]} *

[Event "3. Open Bohumin 2020"]
[Site "Bohumin"]
[Date "2020.07.22"]
[Round "5.15"]
[White "Gnojek, Petr"]
[Black "Mrazek, Roman"]
[Result "1-0"]
[ECO "D18"]
[WhiteElo "2126"]
[BlackElo "1839"]
[Annotator "ChessBase"]
[PlyCount "57"]
[EventDate "2020.07.18"]
[EventType "swiss"]
[EventCountry "CZE"]
[SourceTitle "playchess.com"]
[Source "ChessBase"]
[SourceQuality "1"]
[TimeControl "40/5400+30:900+30"]

1. d4 {[%emt 0:00:00]} d5 {[%emt 0:00:00]} 2. c4 {[%emt 0:00:00]} c6 {[%emt 0:00:00]} 3. Nf3 {[%emt 0:00:00]} Nf6 {[%emt 0:00:00]} 4. Nc3 {[%emt 0:00:00]} dxc4 {[%emt 0:00:10]} 5. a4 {[%emt 0:00:22]} Bf5 {[%emt 0:00:12]} 6. e3 {[%emt 0:00:07]} e6 {[%emt 0:00:38]} 7. Bxc4 {[%emt 0:00:09]} Bb4 {[%emt 0:00:09]} 8. O-O {[%emt 0:00:20]} Nbd7 {[%emt 0:00:20]} 9. Qe2 {[%emt 0:00:29]} O-O {[%emt 0:00:19]} 10. e4 {[%emt 0:00:16]} Bg6 {[%emt 0:00:51]} 11. Bd3 {[%emt 0:07:04]} Bh5 {[%emt 0:02:36]} 12. Bf4 {[%emt 0:08:29]} Rc8 {[%emt 0:07:32]} 13. Rfd1 {[%emt 0:03:06]} Re8 {[%emt 0:03:53]} 14. e5 {[%emt 0:06:12]} Nd5 {[%emt 0:00:54]} 15. Nxd5 {[%emt 0:00:05]} cxd5 {[%emt 0:00:13]} 16. Rac1 {[%emt 0:00:13]} Rxc1 {[%emt 0:11:49]} 17. Rxc1 {[%emt 0:00:06]} Bg6 {[%emt 0:00:44]} 18. Bxg6 {[%emt 0:00:23]} hxg6 {[%emt 0:01:38]} 19. Qb5 {[%emt 0:00:07]} Ba5 {[%emt 0:02:57]} 20. Qxb7 {[%emt 0:00:25]} Bb6 {[%emt 0:02:03]} 21. Bd2 {[%emt 0:01:34]} Nf8 {[%emt 0:04:27]} 22. Qc6 {[%emt 0:01:11]} Re7 {[%emt 0:06:04]} 23. Bg5 {[%emt 0:00:28]} f6 {[%emt 0:00:23]} 24. exf6 {[%emt 0:00:05]} Rc7 {[%emt 0:02:41]} 25. f7+ {[%emt 0:00:06]} Kxf7 {[%emt 0:00:07]} 26. Ne5+ {[%emt 0:00:05]} Kg8 {[%emt 0:01:30]} 27. Bxd8 {[%emt 0:00:06]} Rxc6 {[%emt 0:00:03]} 28. Nxc6 {[%emt 0:00:06]} Bxd8 {[%emt 0:00:12]} 29. Nxd8 1-0

[Event "3. Open Bohumin 2020"]
[Site "Bohumin"]
[Date "2020.07.22"]
[Round "5.17"]
[White "Fialka, Adam"]
[Black "Lys, Josef"]
[Result "1-0"]
[ECO "E50"]
[WhiteElo "1850"]
[BlackElo "2121"]
[Annotator "NA"]
[PlyCount "61"]
[EventDate "2020.07.18"]
[EventType "swiss"]
[EventCountry "CZE"]
[SourceTitle "playchess.com"]
[Source "ChessBase"]
[SourceQuality "1"]
[TimeControl "40/5400+30:900+30"]

{[%evp 11,61,22,27,35,39,29,45,35,34,26,73,33,32767,32767,32767,32767,32767,32767,56,15,32767,37,43,22,49,41,76,32767,32767,32767,32767,32767,32767,32767,32767,229,32767,260,246,256,472,512,587,678,614,763,837,712,766,779,1247,1540]} 1. d4 {[%emt 0:00:00]} Nf6 {[%emt 0:00:43]} 2. Nf3 {[%emt 0:00:00]} e6 {[%emt 0:00:22]} 3. c4 {[%emt 0:00:37]} Bb4+ {[%emt 0:00:27]} 4. Nc3 {[%emt 0:00:11]} O-O {[%emt 0:00:16]} 5. e3 {[%emt 0:05:56]} Ne4 {[%emt 0:02:30]} 6. Qc2 {[%emt 0:00:58] E50: Nimzo-Indian: Rubinstein: 4...0-0 5 Nf3.} Nxc3 {[%emt 0:04:57]} 7. bxc3 {[%emt 0:00:02]} Be7 {[%emt 0:00:17]} 8. Bd3 {[%emt 0:04:03]} h6 {[%emt 0:01:10]} 9. O-O {[%emt 0:02:49]} b6 {[%emt 0:02:58]} 10. e4 {[%emt 0:05:38] [#]} Nc6 $146 {[%emt 0:00:45]} ({Predecessor:} 10... Ba6 11. Bf4 d6 12. Qe2 Nd7 13. a4 c5 14. Ra2 Bb7 15. Rfa1 a5 16. Rb1 Rb8 {½-½ (47) Schweighofer,J (1816)-Leitl,S (1553) Innsbruck 2019}) 11. Be3 {[%emt 0:04:17]} Na5 {[%emt 0:00:22]} 12. Nd2 {[%emt 0:00:11]} Ba6 {[%emt 0:00:35]} 13. e5 {[%emt 0:08:08]} d5 {[%emt 0:02:20]} 14. cxd5 {[%emt 0:08:02]} Bxd3 {[%emt 0:01:45]} 15. Qxd3 {[%emt 0:00:06]} exd5 {[%emt 0:00:13]} 16. f4 {[%emt 0:06:46]} f5 $1 {[%emt 0:02:31]} 17. g4 {[%emt 0:00:08]} Qd7 {[%emt 0:00:38]} 18. Kh1 {[%emt 0:03:41]} Rac8 {[%emt 0:01:16]} 19. Rg1 {[%emt 0:02:38]} fxg4 {[%emt 0:01:03]} 20. Qg6 {[%emt 0:01:41]} Qf5 {[%emt 0:00:18]} 21. Rxg4 {[%emt 0:00:08]} Qxg6 {[%emt 0:00:39]} 22. Rxg6 {[%emt 0:00:02]} Rf5 {[%emt 0:02:39]} 23. Rag1 $1 {[%emt 0:01:25]} Bf8 {[%emt 0:00:16]} 24. Rxh6 {[%emt 0:02:05]} c5 {[%emt 0:00:33] [#]} 25. Nf3 $1 {[%emt 0:03:02]} Nc6 $2 {[%emt 0:01:32]} (25... Be7 {was called for.} 26. Rhg6 Bf8) 26. Nh4 {[%emt 0:00:11]} Rf7 {[%emt 0:01:43]} 27. f5 {[%emt 0:02:46]} cxd4 {[%emt 0:01:15]} 28. cxd4 {[%emt 0:00:21]} Nd8 {[%emt 0:01:42]} 29. e6 {[%emt 0:01:18]} Rb7 {[%emt 0:01:23]} 30. Rh5 {[%emt 0:00:07]} g5 {[%emt 0:02:36]} 31. Bxg5 $18 {[%emt 0:01:25]} 1-0